bitfinex-derivatives/quotes_ETHF0:USTF0_20241008
["timestamp","ask_amount","ask_price","bid_price","bid_amount"]
[1728364190182,0.41113,2432.7,2432.5,0.4151]
[1728364190383,0.41113,2432.7,2432.6,0.41114]
[1728364192080,3.61892,2432.8,2432.7,0.41112]
[1728364192475,3.2078,2432.8,2432.5,0.8381]
[1728364192682,3.2078,2432.8,2432.6,0.41113]
[1728364192683,0.41113,2432.7,2432.6,0.41113]
[1728364193687,3.61892,2432.8,2432.5,0.8381]
[1728364193980,0.41112,2432.7,2432.6,0.41114]
[1728364195492,3.61892,2432.8,2432.7,0.41112]
[1728364195694,0.41113,2432.7,2432.6,0.41113]
[1728364195885,3.61892,2432.8,2432.6,0.41114]
[1728364196190,5.09892,2432.8,2432.7,0.41112]
[1728364196385,4.6878,2432.8,2432.7,0.41112]
[1728364196585,5.09891,2432.8,2432.7,0.41112]
[1728364197085,4.6878,2432.8,2432.7,0.41112]
[1728364197593,5.09891,2432.8,2432.7,0.41112]
[1728364198285,4.6878,2432.8,2432.7,0.41112]
[1728364199191,5.09891,2432.8,2432.7,0.41112]
[1728364200787,0.41115,2432.6,2432.3,0.41119]
[1728364201087,5.71559,2432.8,2432.3,0.41119]
[1728364201088,0.41118,2432.4,2432.3,0.41118]
[1728364201494,2.2948,2432.5,2432.2,0.4245]
[1728364201785,2.2948,2432.5,2432.2,0.83571]
[1728364201786,0.4042,2432.3,2432.2,0.83571]
[1728364202184,0.4042,2432.3,2432.2,4.94691]
[1728364203384,0.4042,2432.3,2432.2,4.52241]
[1728364204991,0.41113,2432.7,2432.2,6.00241]
[1728364205187,3.605,2432.8,2432.3,0.404]
[1728364205394,4.01612,2432.8,2432.7,0.41112]
[1728364205694,4.01612,2432.8,2432.6,0.41113]
[1728364205695,0.41113,2432.7,2432.6,0.41113]
[1728364205891,0.41114,2432.6,2432.5,0.81954]
[1728364206999,1.89113,2432.7,2432.6,0.41114]
[1728364207189,0.41114,2432.6,2432.5,0.81954]
[1728364208599,0.41114,2432.6,2432.5,0.41114]
[1728364210490,1.89113,2432.7,2432.3,1.84037]
[1728364210692,1.89113,2432.7,2432.6,0.41114]
[1728364215191,4.01611,2432.8,2432.4,1.02793]
[1728364215399,4.01611,2432.8,2432.7,0.41112]
[1728364216402,3.605,2432.8,2432.6,0.3926]
[1728364216596,4.01612,2432.8,2432.7,0.41112]
[1728364216995,0.41112,2432.7,2432.6,0.80372]
[1728364217198,3.605,2432.8,2432.3,0.404]
[1728364217395,1.89113,2432.7,2432.6,0.41113]
[1728364222812,5.09893,2432.7,2432.6,0.41113]
[1728364223014,4.6878,2432.7,2432.4,0.3926]
[1728364223304,5.09894,2432.7,2432.6,0.41114]
[1728364226517,4.6878,2432.7,2432.4,0.3926]
[1728364226715,5.09894,2432.7,2432.6,0.41114]
[1728364227015,0.41114,2432.6,2432.5,0.41114]
[1728364227412,4.6878,2432.7,2432.4,0.3926]
[1728364227604,5.09893,2432.7,2432.4,0.3926]
[1728364227812,5.09893,2432.7,2432.6,0.41114]
[1728364228005,4.6878,2432.7,2432.4,0.3926]
[1728364228210,0.41119,2432.3,2432.2,0.8292]
[1728364228711,1.89119,2432.3,2432.2,0.8292]
[1728364229110,1.48,2432.3,2432.2,0.8292]
[1728364231107,3.2078,2432.4,2432.3,0.41119]
[1728364231309,3.61893,2432.7,2432.6,0.41114]
[1728364232011,0.41114,2432.6,2432.5,0.81144]
[1728364232408,4.6878,2432.7,2432.6,0.41114]
[1728364232409,5.09894,2432.7,2432.6,0.41114]
[1728364232708,4.6878,2432.7,2432.5,0.4003]
[1728364233016,4.6878,2432.7,2432.3,0.41119]
[1728364233017,0.41118,2432.4,2432.3,0.41119]
[1728364233213,0.41119,2432.3,2432.2,0.4112]
[1728364233516,0.80129,2432.3,2432.2,0.4112]
[1728364233716,0.80129,2432.3,2432.2,4.5224]
[1728364233918,0.3901,2432.3,2432.2,4.5224]
[1728364234214,0.3901,2432.3,2432.1,0.4003]
[1728364234418,0.4122,2432.2,2432.1,0.81152]
[1728364234911,2.1663,2433.1,2432.1,6.11616]
[1728364234912,4.6878,2432.7,2432.1,6.11616]
[1728364235111,4.6878,2432.7,2432.4,0.41117]
[1728364235112,0.41117,2432.5,2432.4,0.41117]
[1728364235716,0.41117,2432.5,2432.1,2.90836]
[1728364235717,0.41118,2432.4,2432.3,0.41118]
[1728364235914,1.21348,2432.4,2432.3,0.41118]
[1728364236213,1.61928,2432.4,2432.3,0.41118]
[1728364236412,1.2081,2432.4,2432.3,0.41118]
[1728364236612,1.61927,2432.4,2432.3,0.41118]
[1728364237015,1.2081,2432.4,2432.3,0.41118]
[1728364237418,1.61927,2432.4,2432.3,0.41118]
[1728364238113,1.2081,2432.4,2432.3,0.41118]
[1728364238417,1.61927,2432.4,2432.3,0.41118]
[1728364238713,1.61927,2432.4,2432.2,0.41121]
[1728364238714,3.09929,2432.4,2432.2,0.41121]
[1728364239016,3.09929,2432.4,2432.3,0.41119]
[1728364240019,0.4112,2432.3,2432.2,0.4112]
[1728364241211,1.48,2432.3,2432.0,0.8006]
[1728364241412,1.89124,2432.1,2431.9,0.83125]
[1728364241615,1.48,2432.1,2432.0,0.41124]
[1728364241825,1.89122,2432.1,2432.0,0.41124]
[1728364243119,0.41122,2432.1,2432.0,0.41124]
[1728364243326,1.48,2432.2,2431.9,0.83125]
[1728364243523,0.80543,2432.1,2432.0,0.41124]
[1728364243826,0.3942,2432.1,2431.9,0.42]
[1728364244027,0.41124,2432.0,2431.9,0.42]
[1728364244520,0.41124,2432.0,2431.9,0.83126]
[1728364246122,0.80544,2432.1,2431.9,0.83126]
[1728364246423,1.48,2432.0,2431.9,0.83126]
[1728364246624,1.8804,2432.0,2431.9,0.83126]
[1728364247023,2.29164,2432.0,2431.9,0.83126]
[1728364247419,1.8804,2432.0,2431.9,0.83126]
[1728364247621,1.8804,2432.0,2431.9,0.41126]
[1728364247828,0.41129,2431.8,2431.5,3.3038]
[1728364248029,1.48,2431.8,2431.7,0.41129]
[1728364248321,0.41126,2431.9,2431.8,0.41127]
[1728364249123,2.67855,2432.0,2431.6,1.265]
[1728364249318,2.2673,2432.0,2431.8,0.41126]
[1728364249514,2.2673,2432.0,2431.8,0.41127]
[1728364249720,0.41128,2431.8,2431.7,0.41128]
[1728364249925,1.48,2431.8,2431.6,1.265]
[1728364250135,0.4241,2431.7,2431.2,1.17106826]
[1728364250320,0.4241,2431.7,2431.0,0.096]
[1728364250321,1.48,2431.3,2431.0,0.096]
[1728364250628,1.48,2431.1,2430.9,0.3934]
[1728364250815,2.71618,2431.2,2431.0,0.41141]
[1728364251022,2.3048,2431.2,2431.1,0.41139]
[1728364251221,2.3048,2431.2,2431.0,0.7917]
[1728364251421,2.3048,2431.2,2431.1,0.41139]
[1728364251826,2.3048,2431.2,2431.0,0.7917]
[1728364251827,2.71618,2431.2,2431.0,1.2031]
[1728364252527,0.41139,2431.1,2431.0,0.7917]
[1728364253522,0.41139,2431.1,2431.0,1.20311]
[1728364253926,0.41139,2431.1,2431.0,0.7917]
[1728364255126,0.41139,2431.1,2431.0,1.20311]
[1728364255327,0.41139,2431.1,2431.0,0.7917]
[1728364256129,1.89139,2431.1,2431.0,0.7917]
[1728364256324,0.41139,2431.1,2431.0,0.7917]
[1728364257332,0.41139,2431.1,2431.0,1.20311]
[1728364257631,3.2078,2431.3,2431.0,6.3853]
[1728364257826,0.41139,2431.1,2431.0,2.6831]
[1728364258026,0.41138,2431.2,2431.1,0.41139]
[1728364259231,0.41138,2431.2,2431.0,2.2717]
[1728364259525,0.41138,2431.2,2431.1,0.41139]
[1728364260228,3.61917,2431.3,2431.0,2.2717]
[1728364260435,3.61917,2431.3,2431.1,0.41139]
[1728364260635,0.41139,2431.2,2431.0,1.2031]
[1728364260934,0.41139,2431.2,2431.1,0.41139]
[1728364261726,5.09917,2431.3,2431.1,0.41139]
[1728364262135,0.41138,2431.2,2431.1,0.41139]
[1728364262431,0.41139,2431.1,2431.0,0.7917]
[1728364263036,0.41139,2431.1,2431.0,1.20311]
[1728364263535,0.41139,2431.1,2431.0,0.7917]
[1728364263939,0.41139,2431.1,2431.0,1.20311]
[1728364264645,1.48,2431.1,2430.6,3.3038]
[1728364264949,0.41146,2430.8,2430.6,3.2078]
[1728364265141,0.41146,2430.7,2430.6,3.2078]
[1728364265643,0.41146,2430.7,2430.6,13.3222]
[1728364265836,1.02859,2430.9,2430.6,7.3222]
[1728364266037,0.41146,2430.8,2430.7,0.8061]
[1728364266443,0.41146,2430.8,2430.7,4.9197]
[1728364266740,1.02852,2431.1,2430.7,6.3997]
[1728364267040,0.4114,2431.1,2430.9,1.48]
[1728364267246,3.2078,2431.3,2430.9,1.48]
[1728364267451,0.41139,2431.2,2430.9,1.48]
[1728364267643,0.41146,2430.7,2430.6,0.096]
[1728364267944,0.4115,2430.5,2430.4,0.8401]
[1728364270138,1.8915,2430.5,2430.4,0.8401]
[1728364272048,1.8915,2430.5,2430.1,0.096]
[1728364272049,0.41155,2430.2,2430.1,0.096]
[1728364272247,0.41155,2430.2,2430.1,0.8091]
[1728364272441,1.89155,2430.2,2430.1,0.8091]
[1728364272643,1.89155,2430.2,2429.8,0.096]
[1728364272644,0.4116,2429.9,2429.8,0.096]
[1728364272844,2.50891,2430.1,2429.7,0.82282]
[1728364273045,2.50891,2430.1,2429.7,0.4112]
[1728364273348,0.41161,2429.9,2429.7,0.82283]
[1728364273647,2.50891,2430.1,2429.7,0.4112]
[1728364273648,1.48,2430.1,2429.7,0.4112]
[1728364273846,0.8339,2430.3,2429.8,1.48]
[1728364274041,0.4196,2430.3,2429.9,0.41158]
[1728364274242,0.4196,2430.3,2429.8,1.8803]
[1728364274243,0.41157,2430.1,2429.8,0.4003]
[1728364274450,0.41157,2430.1,2429.8,0.8119]
[1728364274853,0.4196,2430.3,2429.8,0.4003]
[1728364275145,0.41156,2430.2,2429.9,0.41159]
[1728364275448,3.2078,2430.4,2429.8,0.4003]
[1728364275753,0.096,2430.6,2430.4,0.4115]
[1728364275946,0.41147,2430.7,2430.5,1.22359]
[1728364276137,3.21,2430.8,2430.5,0.8121]
[1728364276343,0.41148,2430.6,2430.5,0.8121]
[1728364277351,0.41147,2430.7,2430.5,0.8121]
[1728364277550,3.62145,2430.8,2430.5,1.22359]
[1728364277847,3.21,2430.8,2430.6,0.41147]
[1728364278049,3.62144,2430.8,2430.5,1.22359]
[1728364278250,3.62144,2430.8,2430.5,1.22358]
[1728364278447,1.20824,2430.9,2430.5,0.8121]
[1728364278657,1.20824,2430.9,2430.7,0.41146]
[1728364278843,1.20824,2430.9,2430.6,0.41148]
[1728364279244,1.20824,2430.9,2430.7,0.4151]
[1728364279447,1.20824,2430.9,2430.7,0.82656]
[1728364280048,1.20824,2430.9,2430.7,0.4151]
[1728364280449,1.20824,2430.9,2430.7,0.82655]
[1728364280746,0.7968,2430.9,2430.7,0.4151]
[1728364280950,0.4114,2431.1,2430.9,0.41143]
[1728364281151,3.21,2431.2,2430.9,0.41143]
[1728364281152,3.62139,2431.2,2430.9,0.41143]
[1728364281346,0.41139,2431.1,2431.0,0.8217]
[1728364281553,3.62139,2431.2,2431.0,1.23311]
[1728364281848,0.41139,2431.1,2431.0,0.8217]
[1728364282455,3.21,2431.2,2431.0,0.8217]
[1728364282754,0.8116,2431.3,2431.0,4.9353]
[1728364282952,0.41133,2431.5,2431.3,0.41135]
[1728364283656,1.2232,2431.6,2431.1,0.4113]
[1728364283953,0.41135,2431.4,2431.2,0.41136]
[1728364284449,0.41135,2431.4,2431.2,0.41137]
[1728364284649,0.41135,2431.4,2431.3,0.41136]
[1728364285157,1.2232,2431.6,2431.1,0.4113]
[1728364285453,1.2232,2431.6,2431.1,3.6213]
[1728364285758,0.41134,2431.5,2431.3,0.41135]
[1728364286145,1.2232,2431.6,2431.1,0.4113]
[1728364286359,3.2078,2431.7,2431.1,6.8291]
[1728364286563,0.41129,2431.7,2431.6,0.41131]
[1728364286745,0.41129,2431.7,2431.1,7.85757]
[1728364286746,0.41129,2431.7,2431.5,0.41132]
[1728364287652,3.21,2431.7,2431.4,0.41134]
[1728364287850,0.41132,2431.6,2431.4,0.41134]
[1728364288063,1.24132,2431.6,2431.4,0.41134]
[1728364288743,1.24132,2431.6,2431.1,6.8291]
[1728364288958,1.24132,2431.6,2431.5,0.41133]
[1728364289142,0.83,2431.6,2431.4,0.41134]
[1728364289347,1.24132,2431.6,2431.4,0.41134]
[1728364289748,0.83,2431.6,2431.1,3.6191]
[1728364289950,0.41135,2431.4,2431.2,0.41136]
[1728364290561,0.41135,2431.4,2431.1,3.6191]
[1728364290858,0.41135,2431.4,2431.3,0.41136]
[1728364292852,0.41133,2431.5,2431.4,0.41134]
[1728364294154,0.83,2431.6,2431.4,0.41134]
[1728364294358,0.41133,2431.5,2431.4,0.41134]
[1728364294756,1.24132,2431.6,2431.1,3.6191]
[1728364294948,0.41133,2431.5,2431.1,3.6191]
[1728364295150,0.41133,2431.5,2431.4,0.41134]
[1728364295648,0.41133,2431.5,2431.1,3.6191]
[1728364295960,0.41133,2431.5,2431.4,0.41134]
[1728364296559,0.41136,2431.3,2431.2,0.41137]
[1728364297766,0.83615,2431.4,2431.3,0.41136]
[1728364299158,0.41136,2431.3,2431.2,0.41136]
[1728364299764,0.83615,2431.4,2431.3,0.41136]
[1728364301062,0.41136,2431.3,2431.2,0.41136]
[1728364301461,0.4248,2431.4,2431.1,0.4113]
[1728364301671,0.83615,2431.4,2431.3,0.41136]
[1728364305868,0.41137,2431.3,2431.2,0.41137]
[1728364306063,3.21,2431.3,2430.8,0.096]
[1728364306266,0.41143,2430.9,2430.8,0.4165]
[1728364307367,0.41147,2430.7,2430.6,0.41147]
[1728364308169,0.41148,2430.6,2430.5,1.62639]
[1728364308673,1.24855,2430.8,2430.7,0.41146]
[1728364309366,0.8371,2430.8,2430.5,1.2149]
[1728364309565,0.41147,2430.7,2430.6,0.41147]
[1728364310072,0.8371,2430.8,2430.5,1.2149]
[1728364310370,0.4254,2431.0,2430.6,7.3222]
[1728364310665,0.4114,2431.1,2431.0,0.41141]
[1728364311062,0.41142,2431.0,2430.9,0.41142]
[1728364311259,1.83648,2431.2,2430.6,4.23649]
[1728364311470,0.4114,2431.1,2431.0,0.4114]
[1728364311671,0.41142,2431.0,2430.9,0.41142]
[1728364312166,0.41142,2431.0,2430.6,4.23649]
[1728364312167,0.4114,2431.1,2431.0,0.41141]
[1728364319178,0.41136,2431.3,2431.2,0.41137]
[1728364319377,0.41136,2431.3,2430.9,3.2078]
[1728364319378,0.41138,2431.2,2431.1,0.41138]
[1728364321680,5.07087,2431.4,2431.0,0.8093]
[1728364321983,0.41137,2431.3,2431.2,0.41137]
[1728364322981,0.41138,2431.2,2431.1,0.41138]
[1728364323375,1.24385,2431.4,2431.3,0.41136]
[1728364324081,0.41137,2431.3,2431.2,0.41137]
[1728364326875,1.24385,2431.4,2431.3,0.41136]
[1728364327583,0.41135,2431.4,2431.3,0.41136]
[1728364332289,0.41135,2431.4,2431.1,0.4058]
[1728364332290,1.83813,2431.5,2431.1,0.4058]
[1728364332490,0.41138,2431.2,2431.1,0.81719]
[1728364333090,0.41138,2431.2,2431.1,0.4058]
[1728364333286,0.80778,2431.2,2431.1,0.4058]
[1728364333481,0.41139,2431.1,2431.0,0.83351]
[1728364334987,1.8764,2431.2,2431.0,0.4221]
[1728364335182,2.28779,2431.2,2431.1,0.41139]
[1728364335389,2.28779,2431.2,2431.1,0.81009]
[1728364339299,0.80779,2431.2,2431.1,0.81009]
[1728364340095,0.4251,2431.3,2431.1,0.3987]
[1728364340295,1.9051,2431.3,2430.9,1.07506826]
[1728364340491,0.41139,2431.2,2431.1,0.41138]
[1728364340688,1.9051,2431.3,2431.0,0.4167]
[1728364340895,2.31648,2431.3,2431.2,0.41138]
[1728364342298,2.31648,2431.3,2431.0,0.4114]
[1728364342299,0.41141,2431.1,2431.0,0.4114]
[1728364342693,0.41141,2431.0,2430.9,0.82811]
[1728364342893,0.79771,2431.0,2430.9,0.82811]
[1728364343400,0.79771,2431.0,2430.9,4.94171]
[1728364345291,0.3863,2431.0,2430.9,4.94171]
[1728364347093,0.79771,2431.0,2430.9,4.94171]
[1728364347600,0.3863,2431.0,2430.9,4.94171]
[1728364353402,0.79771,2431.0,2430.9,4.94171]
[1728364354612,0.79771,2431.0,2430.9,0.82811]
[1728364355709,0.79771,2431.0,2430.8,0.4074]
[1728364355710,0.3863,2431.0,2430.8,0.4074]
[1728364356000,0.79772,2431.0,2430.9,0.41143]
[1728364360005,1.8663,2431.0,2430.5,1.17444074]
[1728364360199,0.41146,2430.8,2430.7,0.41145]
[1728364360505,0.41147,2430.7,2430.6,0.41146]
[1728364360706,0.4282,2430.7,2430.6,0.41146]
[1728364361408,0.83966,2430.7,2430.6,0.41146]
[1728364361909,0.4282,2430.7,2430.6,0.41146]
[1728364363000,0.8177,2430.7,2430.6,0.41146]
[1728364364314,0.41145,2430.8,2430.5,0.3891]
[1728364364606,0.41145,2430.8,2430.7,0.41146]
[1728364365904,0.41145,2430.8,2430.5,0.3891]
[1728364365905,0.8495,2430.9,2430.8,0.41144]
[1728364366404,1.26093,2430.9,2430.8,0.41144]
[1728364366800,0.8495,2430.9,2430.8,0.41144]
[1728364367403,1.26093,2430.9,2430.8,0.41144]
[1728364369202,1.44006,2430.8,2430.5,0.41149]
[1728364369409,0.41153,2430.3,2430.2,0.4836]
[1728364369721,0.41153,2430.3,2430.2,0.79915]
[1728364373903,1.48,2430.4,2429.8,11.73182528]
[1728364374110,1.48,2430.1,2429.8,4.0183]
[1728364374311,1.48,2430.1,2430.0,0.41158]
[1728364374513,2.3038,2430.1,2430.0,0.41158]
[1728364374913,2.3038,2430.1,2429.8,4.0183]
[1728364375410,1.8916,2429.9,2429.8,3.6021]
[1728364375615,1.8916,2429.9,2429.8,0.3943]
[1728364376115,1.48,2429.9,2429.5,0.4162]
[1728364376316,1.48,2429.9,2429.7,0.41163]
[1728364376317,0.82342,2429.8,2429.7,0.41163]
[1728364376712,0.82342,2429.8,2429.6,0.80594]
[1728364377014,2.30342,2429.8,2429.7,0.41163]
[1728364377518,2.30342,2429.8,2429.6,0.80594]
[1728364378013,2.30342,2429.8,2429.7,0.41163]
[1728364378707,0.4118,2429.8,2429.7,0.41163]
[1728364378910,1.48,2429.9,2429.8,0.41161]
[1728364379110,0.41159,2430.0,2429.6,0.3943]
[1728364379111,0.4082,2430.0,2429.6,0.3943]
[1728364379312,0.4082,2430.0,2429.9,0.4116]
[1728364380116,0.3992,2430.1,2429.8,4.6878]
[1728364380311,1.9056,2430.3,2430.2,0.41155]
[1728364380820,1.9056,2430.3,2429.8,3.2078]
[1728364381017,0.4116,2429.9,2429.8,0.4116]
[1728364381230,1.48,2430.0,2429.7,0.5131]
[1728364381231,0.41162,2429.8,2429.7,0.41163]
[1728364381420,2.3031,2429.8,2429.7,0.41163]
[1728364381616,0.8231,2429.8,2429.7,0.41163]
[1728364382018,1.48,2430.0,2429.9,0.4116]
[1728364382421,0.4116,2429.9,2429.8,0.4116]
[1728364382626,2.31719,2430.0,2429.7,0.41163]
[1728364382820,2.31719,2430.0,2429.6,0.4171]
[1728364382821,0.4116,2429.9,2429.8,0.41161]
[1728364383427,2.31719,2430.0,2429.9,0.4116]
[1728364383923,1.9056,2430.0,2429.9,0.4116]
[1728364384340,0.4256,2430.0,2429.9,0.4116]
[1728364384524,1.89157,2430.1,2430.0,0.41158]
[1728364384926,0.3969,2430.2,2429.9,1.48]
[1728364385124,1.48,2430.6,2430.0,2.739]
[1728364385322,1.48,2430.6,2430.2,1.48]
[1728364385323,0.3969,2430.6,2430.2,1.48]
[1728364385525,2.28839,2430.6,2430.5,0.41149]
[1728364385731,1.8769,2430.6,2430.3,0.4183]
[1728364386330,0.4115,2430.5,2430.4,0.4115]
[1728364386527,2.28839,2430.6,2430.4,0.41151]
[1728364386729,1.8769,2430.6,2430.3,0.4183]
[1728364387028,2.28839,2430.6,2430.5,0.41149]
[1728364387828,0.3969,2430.6,2430.5,0.41149]
[1728364388033,1.89147,2430.7,2430.6,0.41148]
[1728364388431,0.41147,2430.7,2430.6,0.41148]
[1728364389028,0.41145,2430.8,2430.7,0.41145]
[1728364389230,0.81484,2430.9,2430.7,0.41145]
[1728364389633,0.41144,2430.8,2430.7,0.41145]
[1728364389830,0.81484,2430.9,2430.7,0.41145]
[1728364390025,0.4034,2430.9,2430.8,0.41144]
[1728364390227,0.4077,2431.2,2430.9,0.41143]
[1728364390428,0.4114,2431.1,2430.6,0.096]
[1728364390622,0.4114,2431.1,2430.9,0.41141]
[1728364391233,1.23598,2431.2,2430.6,1.44018]
[1728364391426,1.23598,2431.2,2431.0,0.4114]
[1728364391427,0.41138,2431.2,2431.0,0.4114]
[1728364391828,3.61916,2431.3,2430.7,7.44643]
[1728364392136,0.41138,2431.2,2431.0,0.4114]
[1728364392535,3.61916,2431.3,2430.8,0.41144]
[1728364392730,0.41136,2431.3,2431.1,0.41138]
[1728364393125,6.4178,2431.4,2430.8,0.41144]
[1728364393429,3.61915,2431.4,2431.2,0.41136]
[1728364393633,3.61915,2431.4,2431.3,0.41136]
[1728364393831,3.2078,2431.4,2431.3,0.41136]
[1728364394037,3.61915,2431.4,2431.2,0.41137]
[1728364394531,0.41133,2431.5,2431.3,0.41136]
[1728364394944,0.41131,2431.6,2431.4,0.41133]
[1728364395331,0.41131,2431.6,2431.2,0.41138]
[1728364395641,0.41131,2431.6,2431.5,0.41133]
[1728364395835,0.8268,2431.7,2431.6,0.41131]
[1728364396035,4.02958,2431.8,2431.7,0.41129]
[1728364396341,4.02958,2431.8,2431.3,3.2078]
[1728364396839,4.02958,2431.8,2431.7,0.41129]
[1728364397740,4.02958,2431.8,2431.6,0.4113]
[1728364398531,4.02958,2431.8,2431.3,3.2078]
[1728364398932,4.02958,2431.8,2431.6,0.41129]
[1728364401940,3.6183,2431.8,2431.6,0.41129]
[1728364402148,0.41129,2431.7,2431.6,0.41129]
[1728364402730,0.41132,2431.6,2431.5,0.41132]
[1728364402943,0.41134,2431.4,2431.3,0.41135]
[1728364403342,0.41134,2431.4,2431.3,4.52415]
[1728364404637,0.81144,2431.5,2431.3,4.52415]
[1728364404838,0.81144,2431.5,2431.3,0.41135]
[1728364405238,0.81144,2431.5,2431.0,8.313]
[1728364405438,0.81144,2431.5,2431.4,0.41134]
[1728364406837,0.41135,2431.4,2431.3,0.41135]
[1728364407043,0.81765,2431.4,2431.3,0.41135]
[1728364407740,0.41136,2431.3,2431.2,0.41136]
[1728364408335,4.02765,2431.4,2430.9,1.02856]
[1728364408537,4.02765,2431.4,2430.8,0.41144]
[1728364408538,0.41144,2430.9,2430.8,0.41144]
[1728364408835,3.62144,2430.9,2430.7,0.41144]
[1728364409040,0.8143,2430.8,2430.7,0.41144]
[1728364410146,0.4246,2431.0,2430.6,0.3981]
[1728364410335,3.6135,2431.2,2430.6,1.4268]
[1728364410542,4.41558,2431.2,2431.1,0.41139]
[1728364411144,0.7942,2431.2,2431.1,0.41139]
[1728364411342,3.6342,2431.4,2430.8,1.0286]
[1728364411343,0.4242,2431.4,2430.8,1.0286]
[1728364411537,0.4242,2431.4,2431.3,0.41136]
[1728364411538,0.83556,2431.4,2431.3,0.41136]
[1728364411734,0.41137,2431.3,2431.2,0.41137]
[1728364412145,0.41136,2431.3,2431.2,0.41136]
[1728364417847,0.4242,2431.4,2431.1,0.4245]
[1728364418050,0.83555,2431.4,2431.3,0.41136]
[1728364418348,0.83555,2431.4,2431.2,0.41136]
[1728364418349,0.41136,2431.3,2431.2,0.41136]
[1728364419544,0.83555,2431.4,2431.3,0.41136]
[1728364420549,0.4242,2431.4,2431.1,0.4245]
[1728364420751,0.41137,2431.3,2431.2,0.41137]
[1728364431557,6.4178,2431.5,2431.0,0.3951]
[1728364431761,6.4178,2431.5,2431.2,0.41136]
[1728364431762,0.41136,2431.3,2431.2,0.41136]
[1728364431958,0.41135,2431.4,2431.3,0.41135]
[1728364432657,1.89135,2431.4,2431.3,0.41135]
[1728364434359,0.41138,2431.3,2431.2,0.41137]
[1728364434554,0.80398,2431.3,2431.2,0.41137]
[1728364435150,0.3926,2431.3,2431.0,0.3951]
[1728364435352,0.41138,2431.2,2431.1,0.41138]
[1728364435557,1.9027,2431.2,2431.0,0.3951]
[1728364435760,0.41139,2431.1,2431.0,0.80649]
[1728364438163,2.70559,2431.2,2431.1,0.41139]
[1728364439163,2.2942,2431.2,2431.1,0.41139]
[1728364439363,2.70558,2431.2,2431.1,0.41139]
[1728364441854,2.2942,2431.2,2431.0,0.3951]
[1728364442160,0.41139,2431.1,2431.0,0.8065]
[1728364442356,2.70559,2431.2,2431.1,0.41139]
[1728364443958,0.8142,2431.2,2431.1,0.41139]
[1728364444350,0.4227,2431.2,2431.1,0.41139]
[1728364444963,0.83408,2431.2,2431.1,0.41139]
[1728364445461,0.4227,2431.2,2431.1,0.41139]
[1728364445659,0.41138,2431.2,2431.1,0.41139]
[1728364446157,0.3926,2431.3,2431.0,0.3951]
[1728364446362,0.80397,2431.3,2431.2,0.41138]
[1728364447369,0.41138,2431.2,2431.1,0.41138]
[1728364447864,0.41137,2431.3,2431.2,0.41137]
[1728364449056,0.80485,2431.4,2431.3,0.41136]
[1728364449566,0.3935,2431.4,2431.3,0.41136]
[1728364449967,0.80484,2431.4,2431.3,0.41136]
[1728364450773,3.3038,2431.8,2431.3,5.5928]
[1728364450964,0.4113,2431.7,2431.6,0.4113]
[1728364451360,3.61909,2431.8,2431.7,0.41129]
[1728364451863,3.2078,2431.8,2431.7,0.41129]
[1728364452271,3.61907,2431.8,2431.7,0.41129]
[1728364453762,0.41127,2431.8,2431.7,0.41129]
[1728364453964,4.45316,2431.9,2431.8,0.41127]
[1728364454167,0.41128,2431.8,2431.7,0.41128]
[1728364454769,1.48,2431.8,2431.4,1.92734074]
[1728364455067,1.48,2431.8,2431.6,0.4113]
[1728364455068,0.4113,2431.7,2431.6,0.4113]
[1728364455267,0.41131,2431.6,2431.5,0.41131]
[1728364455467,0.81251,2431.6,2431.5,0.41131]
[1728364455665,0.4012,2431.6,2431.5,0.41131]
[1728364457874,0.81946,2431.9,2431.8,0.41127]
[1728364458076,2.70066,2431.9,2431.8,0.41127]
[1728364460272,0.8094,2431.9,2431.8,0.41127]
[1728364460470,2.70066,2431.9,2431.8,0.41127]
[1728364461870,0.41129,2431.8,2431.7,0.41128]
[1728364462076,1.89129,2431.8,2431.7,0.41128]
[1728364462278,1.89129,2431.8,2431.4,0.8489]
[1728364462279,1.48,2431.8,2431.4,0.8489]
[1728364462470,0.4113,2431.7,2431.6,0.4113]
[1728364464976,2.92021,2431.8,2431.4,0.8489]
[1728364465174,1.89133,2431.5,2431.4,0.41134]
[1728364465379,1.48,2431.5,2431.4,0.41134]
[1728364465579,1.8774,2431.5,2431.4,0.41134]
[1728364465772,2.28873,2431.5,2431.4,0.41134]
[1728364466178,1.8774,2431.5,2431.4,0.41134]
[1728364467876,2.28873,2431.5,2431.4,0.41134]
[1728364468084,0.41134,2431.4,2431.3,0.81945]
[1728364468289,2.29674,2431.4,2431.3,0.81945]
[1728364469394,1.8854,2431.4,2431.3,0.81945]
[1728364469888,0.4054,2431.4,2431.3,0.81945]
[1728364471482,0.3974,2431.5,2431.4,0.41134]
[1728364472488,0.80873,2431.5,2431.4,0.41134]
[1728364473691,0.3974,2431.5,2431.4,0.41134]
[1728364474293,0.80873,2431.5,2431.4,0.41134]
[1728364480395,0.41137,2431.3,2431.2,0.41137]
[1728364480596,1.89137,2431.3,2431.2,0.41137]
[1728364480997,2.29807,2431.3,2431.2,0.41137]
[1728364481697,1.8867,2431.3,2431.0,0.4146]